[Event "44th Chess Olympiad Open 2022"]
[Site "Chennai"]
[Date "2022.07.31"]
[Round "3.3"]
[White "Vocaturo, Daniele"]
[Black "Carlsen, Magnus"]
[Result "1/2-1/2"]
[WhiteElo "2616"]
[BlackElo "2864"]
[Annotator "TA"]
[PlyCount "111"]
[EventDate "2022.??.??"]
[TimeControl "60"]

{[%evp 9,111,32,35,30,28,38,30,33,30,32,32,39,38,18,19,19,23,27,23,24,33,32,50,
32,44,40,33,14,20,0,0,0,0,0,0,0,2,0,0,0,0,0,0,0,0,0,0,0,0,0,0,0,0,0,0,0,0,0,0,
0,0,0,0,0,0,0,0,0,0,0,0,0,0,0,0,0,0,0,0,0,0,0,0,0,0,0,27,32,60,43,40,0,6,6,6,6,
6,7,7,0,0,0,17,0]} 1. e4 {[%emt 0:00:07]} c6 {[%emt 0:00:05]} 2. d4 {[%emt 0:
00:00]} d5 {[%emt 0:00:15]} 3. exd5 {[%emt 0:00:39]} cxd5 {[%emt 0:00:08]} 4.
Bd3 {[%emt 0:00:32]} Nc6 {[%emt 0:01:24]} 5. c3 {[%emt 0:00:13]} e6 {[%emt 0:
00:00]} 6. Bf4 {[%emt 0:04:09] B13: Caro-Kann: Exchange Variation and
Panov-Botvinnik Attack.} Bd6 {[%emt 0:07:56] 6...Nge7 might become the main
line.} 7. Bxd6 {[%emt 0:05:55]} Qxd6 {[%emt 0:00:55]} 8. Nf3 {[%emt 0:00:09]
White has an edge.} Nge7 {[%emt 0:02:16]} 9. O-O {[%emt 0:02:13]} Bd7 {[%emt 0:
00:00] [#]} 10. Re1 $146 {[%emt 0:01:03]} ({Predecessor:} 10. Nbd2 Ng6 11. Re1
Nf4 12. Bf1 g6 13. g3 Nh5 14. c4 O-O 15. a3 a5 16. b3 {1-0 (65) Salkic,M (1999)
-Sisic,E (1968) Tuzla 2015}) 10... O-O {[%emt 0:02:17]} 11. Ne5 {[%emt 0:06:26]
} (11. Qc2 $5 {[%cal Rd3h7]}) 11... Nxe5 {[%emt 0:13:13]} 12. dxe5 {[%emt 0:00:
00]} Qb6 {[%emt 0:00:21]} 13. Qb3 {[%emt 0:06:12]} Qxb3 {[%emt 0:18:14]} 14.
axb3 {[%emt 0:00:06]} Rfd8 {[%emt 0:00:44]} 15. Na3 {[%emt 0:05:09]} f6 {
[%emt 0:12:36]} 16. Nc2 {[%emt 0:07:35]} Nc6 {[%emt 0:04:00]} 17. exf6 {
[%emt 0:17:33]} gxf6 {[%emt 0:00:06]} 18. Bb5 {[%emt 0:01:44]} Kf7 {[%emt 0:00:
00]} 19. Bxc6 {[%emt 0:01:31]} Bxc6 {[%emt 0:01:12]} 20. f4 {[%emt 0:05:25]} a5
{[%emt 0:01:19]} 21. Re3 {[%emt 0:00:59]} h5 {[%emt 0:01:27]} 22. Rae1 {
[%emt 0:02:12]} Bd7 {[%emt 0:00:35]} 23. Nd4 {[%emt 0:00:52][%cal Rd4e6]} Ra6 {
[%emt 0:00:20]} 24. Kf2 {[%emt 0:03:58]} b5 {[%emt 0:01:16][%cal Yb7b5,Yb5b4]}
25. g3 {[%emt 0:04:22]} Re8 {[%emt 0:02:26]} 26. h3 {[%emt 0:01:57]} Rh8 {
[%emt 0:03:55]} 27. Kg2 {[%emt 0:03:42]} b4 {[%emt 0:01:38]} 28. Ra1 {[%emt 0:
03:56]} Re8 {[%emt 0:04:49]} 29. Rae1 {[%emt 0:04:14]} a4 {[%emt 0:00:00]} 30.
bxa4 {[%emt 0:04:20]} Rxa4 {[%emt 0:00:16]} 31. R1e2 {[%emt 0:00:16]} Ra2 {
[%emt 0:00:53][%cal Ye6e5]} 32. cxb4 {[%emt 0:02:32]} Ra4 {[%emt 0:01:15]} 33.
Nc2 {[%emt 0:00:34]} Raa8 {[%emt 0:05:33]} 34. Kf2 {[%emt 0:01:31]} Reb8 {
[%emt 0:03:39]} 35. Ra3 {[%emt 0:01:23]} Ke7 {[%emt 0:01:27]} 36. Rd2 {[%emt 0:
00:00]} Kd6 {[%emt 0:02:08]} 37. Ne3 {[%emt 0:00:13][%cal Yf4f5]} Bc6 {[%emt 0:
00:00]} 38. Nc4+ {[%emt 0:01:01]} Ke7 {[%emt 0:00:18]} 39. Na5 {[%emt 0:00:16]}
Bd7 {[%emt 0:00:26]} 40. Nb3 {[%emt 0:00:49]} Kd6 {[%emt 0:02:07]} 41. Nc5 {
[%emt 0:05:23]} Bc6 {[%emt 0:05:25]} 42. Re3 {[%emt 0:02:23]} e5 {[%emt 0:00:
00]} 43. Ne4+ {[%emt 0:05:07]} ({But not} 43. fxe5+ fxe5 44. Ne4+ Kc7 $15)
43... Ke7 {[%emt 0:00:49] [#] White must now prevent ...exf4.} 44. Nc5 {
[%emt 0:05:35]} e4 {[%emt 0:02:30]} 45. Rd4 {[%emt 0:01:21]} f5 {[%emt 0:01:11]
} 46. Ra3 {[%emt 0:02:21]} Rg8 {[%emt 0:06:12]} 47. Rxa8 {[%emt 0:04:41]} Bxa8
$11 {[%emt 0:02:01] Endgame KRB-KRN} 48. Na4 {[%emt 0:01:35]} Kd6 {[%emt 0:01:
46][%cal Ye4e3]} 49. Nc3 $1 {[%emt 0:00:42]} Bc6 {[%emt 0:00:00]} 50. Nd1 {
[%emt 0:00:32]} Bd7 {[%emt 0:00:00] The position is equal.} 51. Ne3 {[%emt 0:
00:27]} Be6 {[%emt 0:00:00]} 52. Rd2 {[%emt 0:00:59]} Rb8 {[%emt 0:00:00]} 53.
Nc2 {[%emt 0:00:24]} Bd7 {[%emt 0:00:46]} 54. Ne3 {[%emt 0:01:35]} Be6 {
[%emt 0:00:14]} 55. Nc2 {[%emt 0:00:30]} Bd7 {[%emt 0:00:22]} 56. Ne3 {[%emt 0:
00:50] Weighted Error Value: White=0.02 (flawless) /Black=0.01 (flawless)}
1/2-1/2

[Event "44th Chess Olympiad Open 2022"]
[Site "Chennai"]
[Date "2022.07.31"]
[Round "3.3"]
[White "Christiansen, Johan-Sebastian"]
[Black "Sonis, Francesco"]
[Result "0-1"]
[WhiteElo "2593"]
[BlackElo "2543"]
[Annotator "RC"]
[PlyCount "118"]
[EventDate "2022.??.??"]
[TimeControl "60"]

1. e4 {[%emt 0:00:03]} e5 {[%emt 0:00:09]} 2. Nf3 {[%emt 0:00:08]} Nc6 {
[%emt 0:00:06]} 3. Bc4 {[%emt 0:00:17]} Bc5 {[%emt 0:00:07]} 4. c3 {[%emt 0:00:
00]} Nf6 {[%emt 0:00:05]} 5. d4 {[%emt 0:00:14]} exd4 {[%emt 0:00:08]} 6. e5 {
[%emt 0:00:08]} d5 {[%emt 0:00:05]} 7. Bb5 {[%emt 0:00:10]} Ne4 {[%emt 0:00:05]
} 8. cxd4 {[%emt 0:00:18]} Bb6 {[%emt 0:00:17]} 9. Nc3 {[%emt 0:00:32]} O-O {
[%emt 0:00:54]} 10. Be3 {[%emt 0:00:49]} f5 {[%emt 0:05:58]} 11. exf6 {[%emt 0:
00:00]} Nxc3 {[%emt 0:02:54]} 12. bxc3 {[%emt 0:00:08]} Qxf6 {[%emt 0:00:07]}
13. O-O {[%emt 0:00:06]} Bg4 {[%emt 0:00:47]} 14. Be2 {[%emt 0:00:06]} Rae8 {
[%emt 0:02:26]} 15. Re1 {[%emt 0:06:58]} Qd6 {[%emt 0:10:25]} 16. Qd2 {[%emt 0:
00:00]} Qg6 {[%emt 0:06:52]} 17. Kh1 {[%emt 0:17:43]} Qh5 {[%emt 0:02:35]} 18.
Ng1 {[%emt 0:21:46]} Na5 {[%emt 0:05:47]} 19. Bf1 {[%emt 0:02:56]} Qf7 {
[%emt 0:04:30]} 20. f3 {[%emt 0:05:22]} Bd7 {[%emt 0:00:29]} 21. Bf2 {[%emt 0:
00:00]} a6 {[%emt 0:01:16]} 22. Rab1 {[%emt 0:03:15]} Rxe1 {[%emt 0:02:19]} 23.
Bxe1 {[%emt 0:02:12]} Qg6 {[%emt 0:01:17]} 24. Rb4 {[%emt 0:02:03]} Qe8 {
[%emt 0:02:44]} 25. Bg3 {[%emt 0:01:48]} Bb5 {[%emt 0:00:26]} 26. Bxb5 {
[%emt 0:02:31]} axb5 {[%emt 0:00:05]} 27. Qg5 {[%emt 0:00:08]} Qd7 {[%emt 0:00:
00]} 28. Be5 {[%emt 0:03:03]} Nc6 {[%emt 0:02:18]} 29. Rb2 {[%emt 0:08:31]} Rf5
{[%emt 0:05:23]} 30. Qg3 {[%emt 0:02:02]} Nxe5 {[%emt 0:02:56]} 31. dxe5 {
[%emt 0:00:02]} d4 {[%emt 0:00:05]} 32. Rd2 {[%emt 0:02:14]} Qc6 {[%emt 0:00:
00]} 33. cxd4 {[%emt 0:00:38]} Qc1 {[%emt 0:00:45]} 34. Rd3 {[%emt 0:05:44]}
Rg5 {[%emt 0:01:04]} 35. Qh4 {[%emt 0:02:30]} Rxe5 {[%emt 0:00:39]} 36. Qd8+ {
[%emt 0:00:21]} Kf7 {[%emt 0:00:05]} 37. Qd7+ {[%emt 0:00:55]} Kf8 {[%emt 0:00:
00]} 38. Qc8+ {[%emt 0:03:01]} Re8 {[%emt 0:04:08]} 39. Qf5+ {[%emt 0:00:01]}
Kg8 {[%emt 0:00:06]} 40. Qd5+ {[%emt 0:01:58]} Kh8 {[%emt 0:00:06]} 41. Qf7 {
[%emt 0:06:33]} Ra8 {[%emt 0:04:23]} 42. h4 {[%emt 0:11:44]} Qc4 {[%emt 0:00:
00]} 43. Qf5 {[%emt 0:00:13]} Bxd4 {[%emt 0:01:20]} 44. Nh3 {[%emt 0:01:19]}
Bf6 {[%emt 0:02:49]} 45. h5 {[%emt 0:01:03]} Qxa2 {[%emt 0:01:31]} 46. Rd1 {
[%emt 0:02:14]} Qe2 {[%emt 0:03:34]} 47. Rb1 {[%emt 0:02:22]} Qe5 {[%emt 0:00:
00]} 48. Qg4 {[%emt 0:01:25]} c6 {[%emt 0:01:16]} 49. f4 {[%emt 0:01:27]} Qe7 {
[%emt 0:01:36]} 50. h6 {[%emt 0:00:40]} gxh6 {[%emt 0:00:26]} 51. Rd1 {[%emt 0:
00:00]} Rg8 {[%emt 0:00:26]} 52. Qf5 {[%emt 0:00:18]} Qg7 {[%emt 0:00:40]} 53.
g4 {[%emt 0:00:49]} Qg6 {[%emt 0:00:04]} 54. Qe6 {[%emt 0:00:28]} Re8 {[%emt 0:
00:00]} 55. Qd6 {[%emt 0:03:13]} Rd8 {[%emt 0:00:14]} 56. Qxd8+ {[%emt 0:00:36]
} Bxd8 {[%emt 0:00:03]} 57. Rxd8+ {[%emt 0:00:04]} Kg7 {[%emt 0:00:02]} 58. Nf2
{[%emt 0:01:41]} Qc2 {[%emt 0:00:09]} 59. Rd7+ {[%emt 0:00:45]} Kf8 {[%emt 0:
00:00]} 0-1

[Event "44th Chess Olympiad Open 2022"]
[Site "Chennai"]
[Date "2022.07.31"]
[Round "3.3"]
[White "Lodici, Lorenzo"]
[Black "Hammer, Jon Ludvig"]
[Result "1-0"]
[WhiteElo "2553"]
[BlackElo "2638"]
[Annotator "RC"]
[PlyCount "81"]
[EventDate "2022.??.??"]
[TimeControl "60"]

1. d4 {[%emt 0:00:04]} Nf6 {[%emt 0:00:06]} 2. c4 {[%emt 0:00:05]} e6 {[%emt 0:
00:00]} 3. Nc3 {[%emt 0:00:14]} Bb4 {[%emt 0:00:06]} 4. a3 {[%emt 0:00:18]}
Bxc3+ {[%emt 0:00:11]} 5. bxc3 {[%emt 0:00:02]} c5 {[%emt 0:00:17]} 6. f3 {
[%emt 0:00:26]} Nc6 {[%emt 0:01:54]} 7. e4 {[%emt 0:00:04]} d6 {[%emt 0:00:09]}
8. d5 {[%emt 0:00:29]} Ne5 {[%emt 0:16:05]} 9. f4 {[%emt 0:00:06]} Ng6 {
[%emt 0:00:28]} 10. dxe6 {[%emt 0:00:06]} fxe6 {[%emt 0:00:06]} 11. Bd3 {
[%emt 0:00:04]} O-O {[%emt 0:22:16]} 12. Ne2 {[%emt 0:10:48]} b6 {[%emt 0:00:
00]} 13. O-O {[%emt 0:07:24]} Qe8 {[%emt 0:00:06]} 14. Ng3 {[%emt 0:04:47]} Bb7
{[%emt 0:01:41]} 15. Ra2 {[%emt 0:07:17]} Rd8 {[%emt 0:04:27]} 16. Re2 {
[%emt 0:02:04]} Rd7 {[%emt 0:04:58]} 17. Ref2 {[%emt 0:16:49]} Rdf7 {[%emt 0:
00:00]} 18. Qe2 {[%emt 0:03:38]} Qa4 {[%emt 0:00:45]} 19. h4 {[%emt 0:09:17]}
e5 {[%emt 0:12:59]} 20. Bc2 {[%emt 0:07:53]} Qa5 {[%emt 0:00:45]} 21. f5 {
[%emt 0:03:11]} Nf4 {[%emt 0:00:07]} 22. Qf3 {[%emt 0:00:50]} Qa6 {[%emt 0:00:
00]} 23. Bb3 {[%emt 0:06:10]} Bc6 {[%emt 0:00:02]} 24. Re1 {[%emt 0:03:41]} Kh8
{[%emt 0:08:40]} 25. a4 {[%emt 0:09:24]} Qb7 {[%emt 0:01:23]} 26. Bxf4 {
[%emt 0:01:13]} exf4 {[%emt 0:00:05]} 27. Qxf4 {[%emt 0:00:05]} Re8 {[%emt 0:
00:00]} 28. Qxd6 {[%emt 0:01:33]} Ng4 {[%emt 0:00:04]} 29. Rff1 {[%emt 0:03:32]
} Ne5 {[%emt 0:00:02]} 30. Qd2 {[%emt 0:01:58]} Rd7 {[%emt 0:03:48]} 31. Qe2 {
[%emt 0:00:35]} Rd3 {[%emt 0:00:11]} 32. Nh5 {[%emt 0:00:02]} Qf7 {[%emt 0:00:
00]} 33. f6 {[%emt 0:01:56]} g6 {[%emt 0:00:01]} 34. Ng7 {[%emt 0:00:09]} Red8
{[%emt 0:00:00]} 35. Rd1 {[%emt 0:00:25]} Rxd1 {[%emt 0:00:30]} 36. Bxd1 {
[%emt 0:00:01]} Qd7 {[%emt 0:01:23]} 37. h5 {[%emt 0:01:00]} Kg8 {[%emt 0:00:
00]} 38. Qe3 {[%emt 0:00:57]} Qxd1 {[%emt 0:00:39]} 39. hxg6 {[%emt 0:00:46]}
Qxf1+ {[%emt 0:00:35]} 40. Kxf1 {[%emt 0:00:03]} Rd1+ {[%emt 0:00:36]} 41. Ke2
{[%emt 0:30:04]} 1-0

[Event "44th Chess Olympiad Open 2022"]
[Site "Chennai"]
[Date "2022.07.31"]
[Round "3.4"]
[White "Shirov, Alexei"]
[Black "Supi, Luis Paulo"]
[Result "1/2-1/2"]
[WhiteElo "2704"]
[BlackElo "2603"]
[Annotator "TA"]
[PlyCount "82"]
[EventDate "2022.??.??"]
[TimeControl "60"]

{[%evp 9,82,8,20,9,20,-4,0,0,3,1,24,-33,-31,-49,-33,-46,0,0,0,-4,0,-15,-7,-12,
42,36,34,40,46,47,52,41,29,32,62,45,57,0,0,0,0,0,0,0,0,0,13,0,4,0,0,0,0,0,0,0,
0,0,0,0,0,-38,0,0,0,0,0,0,0,0,0,0,0,0,0]} 1. e4 {[%emt 0:00:04]} c5 {[%emt 0:
00:00]} 2. Nc3 {[%emt 0:00:05]} d6 {[%emt 0:00:16]} 3. Bb5+ {[%emt 0:00:06]}
Nd7 {[%emt 0:01:45]} 4. d4 {[%emt 0:00:27]} cxd4 {[%emt 0:00:39]} 5. Qxd4 {
[%emt 0:00:05]} a6 {[%emt 0:01:34]} 6. Bxd7+ {[%emt 0:09:29] B23: Closed
Sicilian: Lines without g3.} Bxd7 {[%emt 0:00:17]} 7. f4 {[%emt 0:02:40] [#]}
Bc6 $146 {[%emt 0:38:56]} ({Predecessor:} 7... e6 8. Nf3 Qc7 9. Be3 Bc6 10.
O-O-O Nf6 11. e5 dxe5 12. Nxe5 Be7 13. Qb6 Qxb6 14. Bxb6 {1-0 (44) Jones,G 
(2671)-Nechaeva,M (2372) Chess.com INT 2022}) 8. Bd2 {[%emt 0:33:55]} Nf6 {
[%emt 0:00:00]} 9. O-O-O {[%emt 0:01:27]} g6 {[%emt 0:00:00]} 10. Nf3 {[%emt 0:
00:00]} (10. g4 $11) 10... Bg7 {[%emt 0:00:00]} 11. Rhe1 {[%emt 0:00:07]} O-O {
[%emt 0:00:00][%cal Yf6e4]} 12. Qf2 {[%emt 0:04:37]} Qa5 {[%emt 0:01:03]} (
12... Qc7 $15 {might be stronger.}) 13. Kb1 {[%emt 0:10:06][%cal Yc3d5]} Rfe8 {
[%emt 0:05:51]} 14. h3 {[%emt 0:10:53]} Rac8 {[%emt 0:08:07]} 15. g4 {[%emt 0:
00:00]} Qc7 {[%emt 0:20:56][%cal Yf6e4] Hoping for ...Nxe4!} 16. Bc1 {[%emt 0:
00:00]} b5 {[%emt 0:01:24]} (16... Nd7 $11) 17. e5 $14 {[%emt 0:00:00]} Bxf3 {
[%emt 0:02:25]} 18. Qxf3 {[%emt 0:00:00]} dxe5 {[%emt 0:02:43]} 19. fxe5 {
[%emt 0:00:00]} Nd7 {[%emt 0:00:08][%cal Yf6d7,Yd7f8,Yf8e6]} 20. e6 {[%emt 0:
00:00]} fxe6 {[%emt 0:00:24]} 21. Rxe6 {[%emt 0:00:00] [#] And now Qd5 would
win.} Nf8 {[%emt 0:04:17]} 22. Bf4 {[%emt 0:00:00] 0x0.0005eb958753dp-1022s
more active pieces. The black rooks are badly placed.} Qc4 {[%emt 0:06:44]} 23.
Re4 {[%emt 0:00:00]} ({Better is} 23. Rxa6 $14 e5 24. Bc1) 23... Qc6 $11 {
[%emt 0:02:21] aiming for ...b4.} 24. Re3 {[%emt 0:02:07][%cal Ye4e3,Ye3f3,
Yf3f2,Yf2d2]} Qxf3 {[%emt 0:00:00]} 25. Rxf3 {[%emt 0:00:00]} Ne6 {[%emt 0:00:
00]} 26. Bc1 {[%emt 0:05:22]} Nd4 {[%emt 0:01:27]} 27. Rf2 {[%emt 0:00:00]} Rf8
{[%emt 0:00:00]} 28. Rfd2 {[%emt 0:00:00]} Nf3 {[%emt 0:00:00]} 29. Rd7 {
[%emt 0:00:00]} Bxc3 {[%emt 0:00:00]} 30. bxc3 {[%emt 0:00:05]} Rfe8 {[%emt 0:
00:29]} 31. Ba3 {[%emt 0:00:00]} Ne5 {[%emt 0:01:30]} 32. Rxe7 {[%emt 0:00:00]}
Rxe7 {[%emt 0:00:45]} 33. Bxe7 {[%emt 0:00:00]} Rxc3 {[%emt 0:00:00] Endgame
KRB-KRN} 34. Bf6 {[%emt 0:00:00]} Re3 {[%emt 0:00:29]} 35. Rd8+ {[%emt 0:00:00]
} Kf7 {[%emt 0:00:13]} 36. Bxe5 {[%emt 0:00:00] The position is equal.} Rxe5 {
[%emt 0:00:10] KR-KR} 37. Rd7+ {[%emt 0:00:00]} Re7 {[%emt 0:00:57]} 38. Rd6 {
[%emt 0:00:00]} Re6 {[%emt 0:00:00]} 39. Rd7+ {[%emt 0:00:00]} Re7 {[%emt 0:00:
00]} 40. Rd6 {[%emt 0:00:00]} Re6 {[%emt 0:00:00]} 41. Rd7+ {[%emt 0:28:53]}
Re7 {[%emt 0:30:07] Weighted Error Value: White=0.09 (flawless) /Black=0.06 
(flawless)} 1/2-1/2

[Event "44th Chess Olympiad Open 2022"]
[Site "Chennai"]
[Date "2022.07.31"]
[Round "3.4"]
[White "Santos Latasa, Jaime"]
[Black "Mekhitarian, Krikor Sevag"]
[Result "1-0"]
[WhiteElo "2675"]
[BlackElo "2542"]
[Annotator "TA"]
[PlyCount "107"]
[EventDate "2022.??.??"]
[TimeControl "60"]

{[%evp 13,107,0,0,0,16,27,40,13,30,29,21,13,30,28,35,21,18,18,59,49,64,54,46,
62,60,33,66,58,66,56,91,86,81,81,81,81,96,98,103,96,108,108,108,108,108,115,
114,116,106,116,116,116,119,107,94,94,138,138,142,151,156,143,154,159,157,143,
152,156,143,160,159,143,143,82,82,82,82,82,84,85,88,89,122,122,122,122,122,89,
122,83,128,122,29996,29978,29997,29998]} 1. d4 {[%emt 0:00:03]} Nf6 {[%emt 0:
00:00]} 2. c4 {[%emt 0:00:11]} e6 {[%emt 0:00:05]} 3. g3 {[%emt 0:00:14]} d5 {
[%emt 0:00:43]} 4. Bg2 {[%emt 0:00:05]} Be7 {[%emt 0:00:26]} 5. Nf3 {[%emt 0:
00:00]} O-O {[%emt 0:00:14]} 6. O-O {[%emt 0:00:43]} dxc4 {[%emt 0:00:08]} 7.
Qc2 {[%emt 0:00:55]} b5 {[%emt 0:00:06]} 8. a4 {[%emt 0:00:06] E05: Open
Catalan: 5 Nf3 Be7.} Bb7 {[%emt 0:00:08]} 9. axb5 {[%emt 0:00:13]} a6 {[%emt 0:
00:00]} 10. bxa6 {[%emt 0:01:20] White is slightly better.} Nxa6 {[%emt 0:00:
00]} 11. Qxc4 {[%emt 0:00:27]} Bd5 {[%emt 0:00:08]} 12. Qc3 {[%emt 0:00:22]} c5
{[%emt 0:00:51]} 13. Be3 {[%emt 0:02:45]} Ne4 {[%emt 0:02:05]} 14. Qc1 {
[%emt 0:45:10]} cxd4 {[%emt 0:04:32]} 15. Bxd4 {[%emt 0:00:00]} Nb4 {[%emt 0:
00:00]} 16. Rxa8 {[%emt 0:00:00]} Qxa8 {[%emt 0:43:18]} 17. Nc3 {[%emt 0:00:00]
} Nxc3 {[%emt 0:05:53]} 18. bxc3 {[%emt 0:00:00]} Nc6 {[%emt 0:00:27]} 19. Qe3
{[%emt 0:00:00][%cal Yc3c4]} (19. Qb2 $5 {[%cal Rc3c4]}) 19... Nxd4 {[%emt 0:
00:00]} 20. cxd4 {[%emt 0:00:00]} Rd8 {[%emt 0:04:18]} 21. Qf4 $1 {[%emt 0:00:
00][%cal Yf3e5] [#]} Bf6 $146 {[%emt 0:05:58]} ({Predecessor:} 21... h6 22. e3
Bd6 23. Qh4 Bb4 24. Qg4 Bxf3 25. Bxf3 Qa5 26. Rb1 Bd6 27. h4 Rb8 28. Rxb8+ Bxb8
{1-0 (58) So,W (2776)-Nepomniachtchi,I (2773) Bucharest 2022}) 22. e3 {[%emt 0:
00:00]} Bxf3 {[%emt 0:07:56]} 23. Bxf3 {[%emt 0:00:00]} Qb8 {[%emt 0:00:18]}
24. Qe4 {[%emt 0:00:26]} Qc7 {[%emt 0:00:53]} 25. h4 {[%emt 0:00:00][%cal
Yh2h4,Yh4h5,Yh5h6]} g6 {[%emt 0:00:00]} 26. h5 {[%emt 0:00:00]} Kg7 {[%emt 0:
00:34]} 27. Kg2 {[%emt 0:00:00]} Rb8 {[%emt 0:01:08]} 28. Rh1 {[%emt 0:00:00]}
Rb2 {[%emt 0:00:56]} 29. h6+ {[%emt 0:00:00]} Kf8 {[%emt 0:00:58]} 30. Ra1 {
[%emt 0:00:00][%cal Yh1a1,Ya1a6,Ya6c6,Yc6c7]} Rb8 {[%emt 0:02:08]} 31. Ra6 {
[%emt 0:06:23]} Rd8 {[%emt 0:05:15] Prevents d5.} 32. Rc6 {[%emt 0:00:00]} Qe7
{[%emt 0:04:14]} 33. Qf4 {[%emt 0:00:00]} Bg5 {[%emt 0:00:00]} 34. Qe5 {
[%emt 0:00:00][%cal Re5h8]} Bf6 {[%emt 0:00:00] [#] Against Qh8+} 35. Qa5 {
[%emt 0:00:00]} Bg5 {[%emt 0:03:46]} 36. Rc7 $36 {[%emt 0:00:56] White is
really pushing.} Qf6 {[%emt 0:00:05]} 37. d5 {[%emt 0:03:24] 0x0.
001b82fd574cdp-1022s more active pieces.} Bxh6 {[%emt 0:00:24]} 38. dxe6 {
[%emt 0:01:09]} Qxe6 {[%emt 0:00:18] [#]} 39. Rxf7+ $3 {[%emt 0:00:43]} Qxf7 {
[%emt 0:01:47]} 40. Qxd8+ $16 {[%emt 0:00:11] Endgame KQB-KQB} Kg7 {[%emt 0:01:
45]} 41. Bd5 {[%emt 0:31:06]} Qf8 {[%emt 0:02:01]} 42. Qc7+ {[%emt 0:00:00]}
Kh8 {[%emt 0:00:14]} 43. Qe5+ {[%emt 0:00:00]} (43. f4 $142) 43... Bg7 {
[%emt 0:00:28]} 44. Qe6 {[%emt 0:01:26]} Bf6 {[%emt 0:12:55]} 45. e4 {[%emt 0:
00:00][%cal Ye3e4,Ye4e5]} Kg7 {[%emt 0:00:20]} 46. e5 {[%emt 0:00:00]} Bd8 {
[%emt 0:00:19]} 47. f4 {[%emt 0:00:00]} Kh6 {[%emt 0:00:00]} 48. Qh3+ {[%emt 0:
00:00]} Kg7 {[%emt 0:00:04]} 49. Qd7+ {[%emt 0:00:00]} Kh6 {[%emt 0:09:58]} 50.
Be4 {[%emt 0:00:00]} Bb6 {[%emt 0:02:49]} 51. Kh3 {[%emt 0:00:00]} Qd8 {
[%emt 0:00:23]} 52. Qf7 {[%emt 0:00:00] White threatens g4 and mate.} Qd1 {
[%emt 0:01:40] [#]} (52... Qc7 $16 53. Qf8+ (53. Qf6 Qd8 $18) 53... Qg7) 53.
Qf8+ $1 {[%emt 0:00:00]} Kh5 {[%emt 0:00:04] [#]} 54. Bxg6+ $1 {[%emt 0:00:00]
Weighted Error Value: White=0.06 (flawless) /Black=0.18 (very precise)} 1-0

[Event "44th Chess Olympiad Open 2022"]
[Site "Chennai"]
[Date "2022.07.31"]
[Round "3.4"]
[White "Fier, Alexandr"]
[Black "Vallejo Pons, Francisco"]
[Result "1/2-1/2"]
[WhiteElo "2567"]
[BlackElo "2702"]
[Annotator "TA"]
[PlyCount "86"]
[EventDate "2022.??.??"]
[TimeControl "60"]

{[%evp 9,86,0,0,0,0,8,0,0,0,0,0,-7,20,21,6,-13,0,0,20,-6,0,0,0,-20,-16,-33,-31,
-45,24,-9,-21,-1,0,0,7,0,9,-19,-12,-14,0,-27,-33,-33,-27,-34,-2,-8,-8,-8,-8,-8,
-8,-8,-12,-59,0,0,0,-60,-59,-58,-54,-58,-59,-66,-66,-83,-83,-85,0,-29,0,-83,-7,
-7,-7,-7,0]} 1. e4 {[%emt 0:00:03]} c6 {[%emt 0:00:14]} 2. d4 {[%emt 0:00:04]}
d5 {[%emt 0:00:04]} 3. e5 {[%emt 0:00:16]} c5 {[%emt 0:00:29]} 4. Nf3 {[%emt 0:
00:00]} cxd4 {[%emt 0:00:56]} 5. Qxd4 {[%emt 0:00:05]} Nc6 {[%emt 0:01:36]
[%cal Yb8c6,Yc6b4,Yb4d3]} 6. Qf4 {[%emt 0:00:05] B12: Caro-Kann: Advance
Variation.} e6 {[%emt 0:01:39]} 7. Nc3 {[%emt 0:01:35]} Nb4 {[%emt 0:00:00]} 8.
Bd3 {[%emt 0:00:37]} Nxd3+ {[%emt 0:02:11]} 9. cxd3 {[%emt 0:00:05]} Ne7 {
[%emt 0:00:30]} 10. h4 {[%emt 0:00:05][%cal Yh2h4,Yh4h5]} h6 {[%emt 0:13:17]}
11. h5 {[%emt 0:03:37]} Bd7 {[%emt 0:01:57]} 12. Bd2 {[%emt 0:00:00][%cal
Yc1d2,Yd2c3,Yc3d4] [#]} Rc8 $146 {[%emt 0:05:14]} ({Predecessor:} 12... Nc6 13.
Nb5 a6 14. Nd6+ Bxd6 15. exd6 Qf6 16. d4 Qxf4 17. Bxf4 f6 18. Kd2 Kf7 19. Rac1
Rhc8 20. Rc3 {½-½ (20) Parvanyan,A (2453) -Khenkin,I (2540) Kiel 2021}) 13.
O-O {[%emt 0:14:00]} Nf5 {[%emt 0:16:35]} 14. a4 {[%emt 0:14:47]} Be7 {[%emt 0:
03:32]} 15. Ne2 {[%emt 0:02:09]} O-O {[%emt 0:00:00]} 16. Bc3 {[%emt 0:01:02]}
Bc5 {[%emt 0:08:05]} 17. Ng3 {[%emt 0:06:40]} Nxg3 {[%emt 0:01:56]} 18. Qxg3 {
[%emt 0:00:04]} b5 {[%emt 0:04:22]} ({Black should try} 18... a5 $15) 19. axb5
{[%emt 0:15:11]} (19. Bd2 $5 {[%cal Rd2h6]} Kh8 20. b4 $11) 19... Bxb5 {
[%emt 0:00:23]} 20. Nd4 {[%emt 0:00:02]} Bxd4 {[%emt 0:04:05]} 21. Bxd4 {
[%emt 0:00:04]} a6 {[%emt 0:02:59]} 22. f4 {[%emt 0:00:00]} Qe7 {[%emt 0:01:20]
} 23. Rac1 {[%emt 0:05:45]} Rfe8 {[%emt 0:00:47]} 24. Kh2 {[%emt 0:04:28]} Bd7
{[%emt 0:03:06]} 25. Qg4 {[%emt 0:03:12]} Rxc1 {[%emt 0:00:44]} 26. Rxc1 {
[%emt 0:00:04]} Rc8 {[%emt 0:00:11] Against Bc5} 27. Rf1 {[%emt 0:02:27]} Ba4 {
[%emt 0:04:42]} 28. Bc3 {[%emt 0:01:57] Black must now prevent f5.} Qd7 {
[%emt 0:01:37]} 29. f5 {[%emt 0:06:49]} exf5 {[%emt 0:00:00]} 30. Qxf5 {
[%emt 0:00:05]} (30. Qxg7+ {with more complications.} Kxg7 31. e6+ f6 32. exd7
Bxd7 33. Rf3) 30... Qxf5 {[%emt 0:01:27]} 31. Rxf5 $11 {[%emt 0:00:03] Endgame
KRB-KRB} Bd1 {[%emt 0:01:29]} 32. Kh3 {[%emt 0:01:36]} (32. Rf4 $11 {should be
considered.}) 32... Bc2 {[%emt 0:00:34]} (32... d4 $5 33. Bxd4 Rd8 $15) 33. Rf3
{[%emt 0:00:05]} Bd1 {[%emt 0:00:10]} 34. Rf5 {[%emt 0:00:03]} d4 $1 {[%emt 0:
00:57]} 35. Bxd4 {[%emt 0:00:05]} Rd8 $1 {[%emt 0:00:02]} 36. Bc3 {[%emt 0:03:
23]} Rxd3+ {[%emt 0:00:06]} 37. g3 {[%emt 0:00:01][%cal Ye5e6]} Re3 {[%emt 0:
01:06]} 38. Kh4 {[%emt 0:04:17]} Re2 $1 {[%emt 0:00:12][%cal Re2h2]} 39. Kh3 {
[%emt 0:00:05] [#] Inhibits Rh2+.} Re3 {[%emt 0:00:19]} (39... Re4 $1 $17 {
Strongly threatening ...Bg4+.} 40. Rf4 Rxf4 41. gxf4 Bxh5) 40. Kh4 {[%emt 0:00:
04] Against Bg4} Re2 {[%emt 0:00:17]} (40... Bb3 $11) 41. Kh3 $1 $17 {[%emt 0:
30:04] [#]} Bb3 {[%emt 0:32:31]} ({Better is} 41... Re4 $1 $17 {...Bg4+ is the
strong threat.} 42. Rf4 Rxf4 43. gxf4 Bxh5) 42. Rf4 $11 {[%emt 0:01:18]} Kh7 {
[%emt 0:00:00]} 43. g4 {[%emt 0:00:00]} a5 {[%emt 0:00:00] Weighted Error
Value: White=0.07 (flawless) /Black=0.13 (very precise)} 1/2-1/2